[Event "17th Aeroflot Open-A 2019"]
[Site "Moscow"]
[Date "2019.02.27"]
[Round "9.14"]
[White "Aleksandrov, Aleksej"]
[Black "Dubov, Daniil"]
[Result "1/2-1/2"]
[ECO "E47"]
[WhiteElo "2574"]
[BlackElo "2703"]
[Annotator "ChessBase"]
[PlyCount "126"]
[EventDate "2019.02.19"]
[EventCountry "RUS"]
[SourceTitle "playchess.com"]
[Source "ChessBase"]
[SourceQuality "1"]
[TimeControl "40/5400+30:1800+30"]

1. d4 {[%emt 0:00:00]} Nf6 {[%emt 0:00:00]} 2. c4 {[%emt 0:00:00]} e6 {[%emt 0:00:00]} 3. Nc3 {[%emt 0:00:14]} Bb4 {[%emt 0:00:00]} 4. e3 {[%emt 0:02:54]} O-O {[%emt 0:00:00]} 5. Bd3 {[%emt 0:00:43]} Re8 {[%emt 0:00:29]} 6. Nge2 {[%emt 0:04:19]} d5 {[%emt 0:00:53]} 7. O-O {[%emt 0:06:12]} Nbd7 {[%emt 0:00:14]} 8. a3 {[%emt 0:00:37]} Bf8 {[%emt 0:00:02]} 9. b4 {[%emt 0:01:54]} a5 {[%emt 0:00:38]} 10. b5 {[%emt 0:07:47]} dxc4 {[%emt 0:00:02]} 11. Bxc4 {[%emt 0:00:05]} c5 {[%emt 0:00:05]} 12. bxc6 {[%emt 0:04:58]} bxc6 {[%emt 0:00:02]} 13. e4 {[%emt 0:04:25]} c5 {[%emt 0:03:15]} 14. e5 {[%emt 0:17:59]} Ng4 {[%emt 0:00:09]} 15. Bf4 {[%emt 0:00:22]} cxd4 {[%emt 0:06:28]} 16. Qxd4 {[%emt 0:00:37]} Bc5 {[%emt 0:00:49]} 17. Qe4 {[%emt 0:02:04]} Rb8 {[%emt 0:00:30]} 18. Bb5 {[%emt 0:04:56]} Bb7 {[%emt 0:23:27]} 19. Qa4 {[%emt 0:02:06]} Nb6 {[%emt 0:07:18]} 20. Qc2 {[%emt 0:03:02]} Rf8 {[%emt 0:03:09]} 21. Bd3 {[%emt 0:21:04]} Nd5 {[%emt 0:03:55]} 22. Rad1 {[%emt 0:06:57]} Nxf2 {[%emt 0:09:38]} 23. Rxf2 {[%emt 0:00:04]} Bxf2+ {[%emt 0:00:06]} 24. Kxf2 {[%emt 0:00:02]} Qb6+ {[%emt 0:00:07]} 25. Kf1 {[%emt 0:00:04]} f6 {[%emt 0:00:58]} 26. Nxd5 {[%emt 0:03:15]} Bxd5 {[%emt 0:00:02]} 27. Bxh7+ {[%emt 0:00:05]} Kh8 {[%emt 0:00:04]} 28. Qg6 {[%emt 0:00:51]} Be4 {[%emt 0:10:42]} 29. Qxe4 {[%emt 0:00:07]} f5 {[%emt 0:00:01]} 30. Qe3 {[%emt 0:02:50]} Qxe3 {[%emt 0:00:10]} 31. Bxe3 {[%emt 0:00:04]} Kxh7 {[%emt 0:00:04]} 32. Nf4 {[%emt 0:00:47]} Rb3 {[%emt 0:02:12]} 33. Bc5 {[%emt 0:02:19]} Re8 {[%emt 0:00:16]} 34. h4 {[%emt 0:00:32]} Rc3 {[%emt 0:00:20]} 35. Bd6 {[%emt 0:00:07]} Kh6 {[%emt 0:00:23]} 36. Kf2 {[%emt 0:00:39]} g5 {[%emt 0:00:35]} 37. hxg5+ {[%emt 0:00:10]} Kxg5 {[%emt 0:00:02]} 38. Rd4 {[%emt 0:00:27]} Rb3 {[%emt 0:02:01]} 39. Ra4 {[%emt 0:00:41]} Rb5 {[%emt 0:02:05]} 40. Ke3 {[%emt 0:00:00]} Rb3+ {[%emt 0:00:00]} 41. Kd2 {[%emt 0:02:47]} Rg3 {[%emt 0:00:33]} 42. Ke2 {[%emt 0:00:13]} Rb3 {[%emt 0:09:12]} 43. Nh3+ {[%emt 0:04:15]} Kh5 {[%emt 0:00:58]} 44. Kf2 {[%emt 0:04:50]} Rb5 {[%emt 0:08:07]} 45. Kg1 {[%emt 0:06:15]} Rc8 {[%emt 0:04:49]} 46. Nf4+ {[%emt 0:00:38]} Kg4 {[%emt 0:00:28]} 47. Rd4 {[%emt 0:09:26]} Rb1+ {[%emt 0:01:57]} 48. Kh2 {[%emt 0:00:09]} Rh8+ {[%emt 0:00:15]} 49. Nh3+ {[%emt 0:00:03]} Kh5 {[%emt 0:00:05]} 50. Be7 {[%emt 0:00:27]} Kg6 {[%emt 0:01:56]} 51. Bh4 {[%emt 0:03:51]} Rb7 {[%emt 0:00:33]} 52. Bf6 {[%emt 0:00:46]} Rhh7 {[%emt 0:00:32]} 53. Rd3 {[%emt 0:00:10]} Rbc7 {[%emt 0:03:30]} 54. Kg3 {[%emt 0:01:17]} Rhd7 {[%emt 0:00:22]} 55. Rf3 {[%emt 0:00:11]} Rd4 {[%emt 0:01:19]} 56. Nf4+ {[%emt 0:00:10]} Kf7 {[%emt 0:00:02]} 57. Kh2 {[%emt 0:00:08]} Rc2 {[%emt 0:01:05]} 58. Bg5 {[%emt 0:01:10]} Rcc4 {[%emt 0:01:12]} 59. Rf2 {[%emt 0:01:59]} Re4 {[%emt 0:02:42]} 60. g4 {[%emt 0:00:21]} Rxe5 {[%emt 0:02:05]} 61. Rd2 {[%emt 0:00:07]} fxg4 {[%emt 0:11:45]} 62. Rd7+ {[%emt 0:00:04]} Ke8 {[%emt 0:00:18]} 63. Rd8+ {[%emt 0:00:13]} Kf7 1/2-1/2

[Event "17th Aeroflot Open-A 2019"]
[Site "Moscow"]
[Date "2019.02.27"]
[Round "9.15"]
[White "Kovalev, Vladislav"]
[Black "Antipov, Mikhail Al."]
[Result "1/2-1/2"]
[ECO "C03"]
[WhiteElo "2703"]
[BlackElo "2589"]
[Annotator "ChessBase"]
[PlyCount "102"]
[EventDate "2019.02.19"]
[EventCountry "RUS"]
[SourceTitle "playchess.com"]
[Source "ChessBase"]
[SourceQuality "1"]
[TimeControl "40/5400+30:1800+30"]

1. e4 {[%emt 0:00:00]} e6 {[%emt 0:03:22]} 2. d4 {[%emt 0:00:00]} d5 {[%emt 0:00:08]} 3. Nd2 {[%emt 0:00:35]} Be7 {[%emt 0:00:12]} 4. e5 {[%emt 0:02:34]} c5 {[%emt 0:00:13]} 5. c3 {[%emt 0:00:08]} cxd4 {[%emt 0:00:10]} 6. cxd4 {[%emt 0:00:04]} Qb6 {[%emt 0:00:06]} 7. Ndf3 {[%emt 0:06:04]} Bb4+ {[%emt 0:00:10]} 8. Bd2 {[%emt 0:00:04]} Nc6 {[%emt 0:00:09]} 9. Bc3 {[%emt 0:11:34]} Bd7 {[%emt 0:07:39]} 10. Qd2 {[%emt 0:00:14]} f6 {[%emt 0:06:58]} 11. Bd3 {[%emt 0:04:57]} Bxc3 {[%emt 0:19:00]} 12. bxc3 {[%emt 0:00:16]} Qc7 {[%emt 0:00:06]} 13. exf6 {[%emt 0:05:18]} gxf6 {[%emt 0:01:06]} 14. c4 {[%emt 0:11:48]} dxc4 {[%emt 0:05:48]} 15. Bxc4 {[%emt 0:00:08]} Qa5 {[%emt 0:00:25]} 16. Ne2 {[%emt 0:01:06]} Qxd2+ {[%emt 0:01:27]} 17. Nxd2 {[%emt 0:00:52]} Na5 {[%emt 0:09:12]} 18. Bd3 {[%emt 0:00:25]} Ne7 {[%emt 0:07:30]} 19. Nf4 {[%emt 0:04:37]} Nec6 {[%emt 0:09:24]} 20. Nf3 {[%emt 0:11:31]} Kf7 {[%emt 0:06:10]} 21. Rb1 {[%emt 0:04:11]} e5 {[%emt 0:17:52]} 22. dxe5 {[%emt 0:00:48]} Nxe5 {[%emt 0:00:04]} 23. Nxe5+ {[%emt 0:00:56]} fxe5 {[%emt 0:00:04]} 24. Nd5 {[%emt 0:05:05]} Rad8 {[%emt 0:00:38]} 25. Ne3 {[%emt 0:00:43]} Be6 {[%emt 0:00:55]} 26. Ke2 {[%emt 0:01:31]} b6 {[%emt 0:00:17]} 27. Rhc1 {[%emt 0:03:42]} Rc8 {[%emt 0:00:12]} 28. Ba6 {[%emt 0:03:35]} Rxc1 {[%emt 0:00:06]} 29. Rxc1 {[%emt 0:00:02]} Rd8 {[%emt 0:00:31]} 30. Rc2 {[%emt 0:01:21]} h6 {[%emt 0:03:15]} 31. Kf3 {[%emt 0:03:58]} h5 {[%emt 0:01:42]} 32. Kg3 {[%emt 0:01:04]} Kf6 {[%emt 0:00:33]} 33. Be2 {[%emt 0:05:13]} Nb7 {[%emt 0:00:26]} 34. Bxh5 {[%emt 0:01:11]} Nc5 {[%emt 0:00:13]} 35. h4 {[%emt 0:05:08]} Rd3 {[%emt 0:00:52]} 36. Bg4 {[%emt 0:03:29]} Bf7 {[%emt 0:00:19]} 37. Bf3 {[%emt 0:00:35]} Ra3 {[%emt 0:00:35]} 38. Ng4+ {[%emt 0:00:23]} Ke6 {[%emt 0:00:35]} 39. Re2 {[%emt 0:00:33]} e4 {[%emt 0:00:19]} 40. Kf4 {[%emt 0:00:00]} Kd6 {[%emt 0:00:00]} 41. Rd2+ {[%emt 0:25:48]} Ke7 {[%emt 0:23:00]} 42. Bxe4 {[%emt 0:00:05]} Rxa2 {[%emt 0:02:52]} 43. Rxa2 {[%emt 0:00:51]} Bxa2 {[%emt 0:00:03]} 44. Bf5 {[%emt 0:02:40]} a5 {[%emt 0:00:08]} 45. h5 {[%emt 0:00:58]} a4 {[%emt 0:00:30]} 46. h6 {[%emt 0:01:42]} Kf8 {[%emt 0:00:05]} 47. Ne5 {[%emt 0:04:21]} a3 {[%emt 0:01:13]} 48. Ke3 {[%emt 0:01:11]} Bb3 {[%emt 0:01:36]} 49. Bb1 {[%emt 0:00:06]} a2 {[%emt 0:00:18]} 50. Bxa2 {[%emt 0:00:02]} Bxa2 {[%emt 0:00:18]} 51. g4 {[%emt 0:00:20]} Kg8 {[%emt 0:01:56]} 1/2-1/2

[Event "17th Aeroflot Open-A 2019"]
[Site "Moscow"]
[Date "2019.02.27"]
[Round "9.19"]
[White "Sychev, Klementy"]
[Black "Van Foreest, Jorden"]
[Result "1-0"]
[ECO "B92"]
[WhiteElo "2545"]
[BlackElo "2618"]
[Annotator "ChessBase"]
[PlyCount "78"]
[EventDate "2019.02.19"]
[EventCountry "RUS"]
[SourceTitle "playchess.com"]
[Source "ChessBase"]
[SourceQuality "1"]
[TimeControl "40/5400+30:1800+30"]

1. e4 {[%emt 0:02:01]} c5 {[%emt 0:00:00]} 2. Nf3 {[%emt 0:00:05]} d6 {[%emt 0:00:00]} 3. d4 {[%emt 0:01:05]} cxd4 {[%emt 0:00:07]} 4. Nxd4 {[%emt 0:00:02]} Nf6 {[%emt 0:00:13]} 5. Nc3 {[%emt 0:00:18]} a6 {[%emt 0:00:11]} 6. Be2 {[%emt 0:01:45]} e5 {[%emt 0:01:30]} 7. Nb3 {[%emt 0:03:06]} Be7 {[%emt 0:00:56]} 8. Be3 {[%emt 0:00:55]} Be6 {[%emt 0:00:27]} 9. h4 {[%emt 0:00:45]} O-O {[%emt 0:03:49]} 10. Bf3 {[%emt 0:00:16]} Nc6 {[%emt 0:09:37]} 11. g4 {[%emt 0:06:24]} Nd7 {[%emt 0:00:59]} 12. g5 {[%emt 0:06:05]} Nb6 {[%emt 0:04:57]} 13. Nd5 {[%emt 0:35:42]} Nc4 {[%emt 0:01:20]} 14. Qe2 {[%emt 0:02:50]} b5 {[%emt 0:07:03]} 15. O-O-O {[%emt 0:00:18]} a5 {[%emt 0:01:34]} 16. Nd2 {[%emt 0:00:36]} Nxe3 {[%emt 0:15:14]} 17. fxe3 {[%emt 0:00:47]} Qc8 {[%emt 0:05:37]} 18. Kb1 {[%emt 0:02:10]} Rb8 {[%emt 0:05:29]} 19. Rhg1 {[%emt 0:02:02]} a4 {[%emt 0:02:27]} 20. Bg4 {[%emt 0:03:43]} a3 {[%emt 0:03:07]} 21. b3 {[%emt 0:00:34]} Bd8 {[%emt 0:00:09]} 22. c4 {[%emt 0:13:51]} Na7 {[%emt 0:04:04]} 23. Rc1 {[%emt 0:01:49]} Qb7 {[%emt 0:00:23]} 24. Nf6+ {[%emt 0:08:31]} Kh8 {[%emt 0:19:37]} 25. Bxe6 {[%emt 0:00:13]} fxe6 {[%emt 0:00:05]} 26. Nxh7 {[%emt 0:00:33]} Kxh7 {[%emt 0:00:18]} 27. Qh5+ {[%emt 0:00:04]} Kg8 {[%emt 0:00:03]} 28. g6 {[%emt 0:00:05]} Rf2 {[%emt 0:00:02]} 29. Qh7+ {[%emt 0:02:39]} Kf8 {[%emt 0:00:02]} 30. Qh8+ {[%emt 0:02:04]} Ke7 {[%emt 0:00:05]} 31. Qxg7+ {[%emt 0:00:13]} Ke8 {[%emt 0:00:04]} 32. Qxb7 {[%emt 0:01:39]} Rxb7 {[%emt 0:00:24]} 33. g7 {[%emt 0:00:01]} Rxg7 {[%emt 0:00:07]} 34. Rxg7 {[%emt 0:00:03]} Bb6 {[%emt 0:00:46]} 35. Rb7 {[%emt 0:02:00]} Bxe3 {[%emt 0:00:32]} 36. Rg1 {[%emt 0:00:05]} Kf8 {[%emt 0:00:22]} 37. Rf1 {[%emt 0:00:04]} Rf4 {[%emt 0:00:52]} 38. Rxf4+ {[%emt 0:01:40]} exf4 {[%emt 0:00:01]} 39. Nf3 {[%emt 0:00:15]} bxc4 {[%emt 0:00:13]} 1-0

[Event "17th Aeroflot Open-A 2019"]
[Site "Moscow"]
[Date "2019.02.27"]
[Round "9.20"]
[White "Karthikeyan, Murali"]
[Black "Idani, Pouya"]
[Result "1/2-1/2"]
[ECO "B90"]
[WhiteElo "2560"]
[BlackElo "2604"]
[Annotator "ChessBase"]
[PlyCount "82"]
[EventDate "2019.02.19"]
[EventCountry "RUS"]
[SourceTitle "playchess.com"]
[Source "ChessBase"]
[SourceQuality "1"]
[TimeControl "40/5400+30:1800+30"]

1. e4 {[%emt 0:00:00]} c5 {[%emt 0:00:31]} 2. Nf3 {[%emt 0:00:00]} d6 {[%emt 0:00:02]} 3. d4 {[%emt 0:00:00]} cxd4 {[%emt 0:00:04]} 4. Nxd4 {[%emt 0:00:00]} Nf6 {[%emt 0:00:04]} 5. Nc3 {[%emt 0:00:00]} a6 {[%emt 0:00:02]} 6. h3 {[%emt 0:00:03]} Nc6 {[%emt 0:02:17]} 7. g4 {[%emt 0:00:20]} g6 {[%emt 0:00:05]} 8. Be3 {[%emt 0:01:11]} Nxd4 {[%emt 0:00:06]} 9. Bxd4 {[%emt 0:00:31]} Bh6 {[%emt 0:00:05]} 10. f3 {[%emt 0:02:02]} Be6 {[%emt 0:02:26]} 11. h4 {[%emt 0:05:00]} Bf4 {[%emt 0:00:10]} 12. Ne2 {[%emt 0:05:52]} Be5 {[%emt 0:00:14]} 13. Qd2 {[%emt 0:01:22]} Qc7 {[%emt 0:05:59]} 14. O-O-O {[%emt 0:10:11]} Bxa2 {[%emt 0:08:11]} 15. f4 {[%emt 0:23:42]} Bxd4 {[%emt 0:19:21]} 16. Qxd4 {[%emt 0:00:28]} Bc4 {[%emt 0:06:24]} 17. Nc3 {[%emt 0:19:02]} Bxf1 {[%emt 0:05:12]} 18. Rhxf1 {[%emt 0:04:20]} Qc5 {[%emt 0:03:31]} 19. Qxc5 {[%emt 0:02:37]} dxc5 {[%emt 0:00:28]} 20. g5 {[%emt 0:00:24]} Nd7 {[%emt 0:18:01]} 21. Nd5 {[%emt 0:00:48]} Rc8 {[%emt 0:03:11]} 22. Rf3 {[%emt 0:04:54]} c4 {[%emt 0:01:44]} 23. h5 {[%emt 0:05:49]} Nc5 {[%emt 0:06:46]} 24. Rh3 {[%emt 0:01:51]} Rg8 {[%emt 0:01:28]} 25. hxg6 {[%emt 0:03:18]} hxg6 {[%emt 0:00:05]} 26. f5 {[%emt 0:00:21]} Nxe4 {[%emt 0:04:15]} 27. fxg6 {[%emt 0:01:48]} Nxg5 {[%emt 0:00:44]} 28. Re3 {[%emt 0:02:50]} e6 {[%emt 0:02:19]} 29. Nf6+ {[%emt 0:01:13]} Ke7 {[%emt 0:00:06]} 30. Nxg8+ {[%emt 0:00:07]} Rxg8 {[%emt 0:00:04]} 31. gxf7 {[%emt 0:00:06]} Nxf7 {[%emt 0:00:07]} 32. Rh3 {[%emt 0:02:02]} Rg7 {[%emt 0:04:21]} 33. Rdh1 {[%emt 0:01:34]} Rg6 {[%emt 0:00:27]} 34. Rf3 {[%emt 0:00:47]} Rg7 {[%emt 0:00:05]} 35. Rc3 {[%emt 0:00:40]} Ne5 {[%emt 0:02:00]} 36. Rch3 {[%emt 0:00:07]} Nf7 {[%emt 0:00:25]} 37. Rh7 {[%emt 0:00:24]} Rxh7 {[%emt 0:00:05]} 38. Rxh7 {[%emt 0:00:01]} e5 {[%emt 0:00:16]} 39. Rh4 {[%emt 0:01:20]} Nd6 {[%emt 0:00:18]} 40. Rh6 {[%emt 0:00:00]} Kd7 {[%emt 0:00:00]} 41. Kd2 {[%emt 0:01:53]} Kc6 {[%emt 0:00:11]} 1/2-1/2

[Event "17th Aeroflot Open-A 2019"]
[Site "Moscow"]
[Date "2019.02.27"]
[Round "9.21"]
[White "Aravindh, Chithambaram VR."]
[Black "Xu, Yi"]
[Result "1/2-1/2"]
[ECO "D31"]
[WhiteElo "2601"]
[BlackElo "2520"]
[Annotator "ChessBase"]
[PlyCount "148"]
[EventDate "2019.02.19"]
[EventCountry "RUS"]
[SourceTitle "playchess.com"]
[Source "ChessBase"]
[SourceQuality "1"]
[TimeControl "40/5400+30:1800+30"]

1. c4 {[%emt 0:00:10]} e6 {[%emt 0:01:11]} 2. Nc3 {[%emt 0:00:39]} d5 {[%emt 0:00:21]} 3. d4 {[%emt 0:00:29]} a6 {[%emt 0:00:06]} 4. cxd5 {[%emt 0:01:02]} exd5 {[%emt 0:00:05]} 5. Nf3 {[%emt 0:00:11]} c6 {[%emt 0:01:54]} 6. Qb3 {[%emt 0:03:49]} Nf6 {[%emt 0:03:19]} 7. Bg5 {[%emt 0:01:47]} Be7 {[%emt 0:05:48]} 8. g3 {[%emt 0:03:59]} Nbd7 {[%emt 0:06:56]} 9. Bg2 {[%emt 0:00:37]} Ne4 {[%emt 0:04:58]} 10. Bf4 {[%emt 0:04:33]} Ndf6 {[%emt 0:03:01]} 11. O-O {[%emt 0:01:04]} Nxc3 {[%emt 0:11:54]} 12. bxc3 {[%emt 0:00:23]} O-O {[%emt 0:02:38]} 13. Rad1 {[%emt 0:06:04]} b5 {[%emt 0:00:43]} 14. Ne5 {[%emt 0:00:57]} Qb6 {[%emt 0:02:42]} 15. c4 {[%emt 0:08:12]} Be6 {[%emt 0:00:30]} 16. cxd5 {[%emt 0:00:10]} Nxd5 {[%emt 0:02:35]} 17. Qb2 {[%emt 0:01:15]} Rac8 {[%emt 0:04:55]} 18. Bd2 {[%emt 0:02:09]} Rfd8 {[%emt 0:01:30]} 19. Rc1 {[%emt 0:05:37]} Bf8 {[%emt 0:10:38]} 20. Rfd1 {[%emt 0:06:51]} Qb7 {[%emt 0:07:13]} 21. Be1 {[%emt 0:12:08]} f6 {[%emt 0:02:53]} 22. Nc4 {[%emt 0:01:16]} Qd7 {[%emt 0:09:53]} 23. Na5 {[%emt 0:00:49]} f5 {[%emt 0:00:33]} 24. e3 {[%emt 0:08:24]} Bf7 {[%emt 0:03:47]} 25. Rc2 {[%emt 0:00:46]} Ne7 {[%emt 0:03:24]} 26. Rdc1 {[%emt 0:06:21]} Bd5 {[%emt 0:00:10]} 27. f3 {[%emt 0:00:13]} g6 {[%emt 0:01:13]} 28. Nb3 {[%emt 0:04:09]} Bg7 {[%emt 0:01:41]} 29. Qa3 {[%emt 0:01:14]} Re8 {[%emt 0:01:44]} 30. Bf2 {[%emt 0:00:47]} Bc4 {[%emt 0:01:31]} 31. Na5 {[%emt 0:02:53]} Bd5 {[%emt 0:00:50]} 32. Rd1 {[%emt 0:00:48]} Be6 {[%emt 0:00:46]} 33. Nb3 {[%emt 0:04:44]} Bc4 {[%emt 0:00:33]} 34. h3 {[%emt 0:00:36]} Nd5 {[%emt 0:00:49]} 35. Nc5 {[%emt 0:02:28]} Qf7 {[%emt 0:00:57]} 36. e4 {[%emt 0:00:38]} fxe4 {[%emt 0:01:00]} 37. fxe4 {[%emt 0:00:05]} b4 {[%emt 0:00:10]} 38. Qb2 {[%emt 0:07:32]} Nc3 {[%emt 0:00:10]} 39. Ra1 {[%emt 0:00:12]} a5 {[%emt 0:00:51]} 40. a3 {[%emt 0:00:00]} Rb8 {[%emt 0:00:00]} 41. axb4 {[%emt 0:01:45]} axb4 {[%emt 0:06:01]} 42. e5 {[%emt 0:00:52]} Bf8 {[%emt 0:09:21]} 43. Bxc6 {[%emt 0:03:50]} Bxc5 {[%emt 0:00:30]} 44. Bxe8 {[%emt 0:10:00]} Rxe8 {[%emt 0:02:33]} 45. dxc5 {[%emt 0:00:07]} Qf3 {[%emt 0:01:37]} 46. Kh2 {[%emt 0:00:27]} Ne2 {[%emt 0:01:59]} 47. Rxe2 {[%emt 0:00:12]} Bxe2 {[%emt 0:00:35]} 48. Bd4 {[%emt 0:00:26]} b3 {[%emt 0:06:12]} 49. c6 {[%emt 0:01:39]} Bc4 {[%emt 0:02:22]} 50. c7 {[%emt 0:07:49]} Bd5 {[%emt 0:00:39]} 51. Qd2 {[%emt 0:01:27]} Rc8 {[%emt 0:05:14]} 52. Bb6 {[%emt 0:00:08]} Qe4 {[%emt 0:00:20]} 53. Rc1 {[%emt 0:02:01]} h5 {[%emt 0:00:40]} 54. Qf2 {[%emt 0:07:31]} Kh7 {[%emt 0:01:22]} 55. Re1 {[%emt 0:00:36]} Qc2 {[%emt 0:00:09]} 56. Re2 {[%emt 0:01:26]} Qd1 {[%emt 0:01:07]} 57. Re1 {[%emt 0:00:07]} Qc2 {[%emt 0:00:02]} 58. Re2 {[%emt 0:01:00]} Qd1 {[%emt 0:00:04]} 59. g4 {[%emt 0:00:06]} Rf8 {[%emt 0:01:03]} 60. Qe1 {[%emt 0:01:25]} Qxe1 {[%emt 0:01:18]} 61. Rxe1 {[%emt 0:00:02]} Be6 {[%emt 0:00:22]} 62. Kg3 {[%emt 0:00:38]} hxg4 {[%emt 0:00:27]} 63. hxg4 {[%emt 0:00:03]} g5 {[%emt 0:00:14]} 64. Be3 {[%emt 0:01:51]} Rc8 {[%emt 0:00:49]} 65. Bb6 {[%emt 0:00:04]} Rf8 {[%emt 0:00:10]} 66. Rc1 {[%emt 0:00:19]} Rf4 {[%emt 0:00:52]} 67. Ba5 {[%emt 0:00:43]} Rxg4+ {[%emt 0:00:59]} 68. Kf3 {[%emt 0:00:05]} b2 {[%emt 0:00:35]} 69. Rb1 {[%emt 0:00:20]} Ra4 {[%emt 0:00:04]} 70. Bd2 {[%emt 0:00:25]} Rc4 {[%emt 0:00:54]} 71. Rxb2 {[%emt 0:00:10]} g4+ {[%emt 0:00:13]} 72. Kg3 {[%emt 0:00:06]} Rxc7 {[%emt 0:00:05]} 73. Rb6 {[%emt 0:00:04]} Re7 {[%emt 0:00:18]} 74. Bg5 {[%emt 0:00:23]} Re8 {[%emt 0:00:03]} 1/2-1/2

[Event "17th Aeroflot Open-A 2019"]
[Site "Moscow"]
[Date "2019.02.27"]
[Round "9.22"]
[White "Narayanan.S.L"]
[Black "Sadhwani, Raunak"]
[Result "1-0"]
[ECO "C43"]
[WhiteElo "2593"]
[BlackElo "2448"]
[Annotator "ChessBase"]
[PlyCount "117"]
[EventDate "2019.02.19"]
[EventCountry "RUS"]
[SourceTitle "playchess.com"]
[Source "ChessBase"]
[SourceQuality "1"]
[TimeControl "40/5400+30:1800+30"]

1. e4 {[%emt 0:00:00]} e5 {[%emt 0:00:00]} 2. Nf3 {[%emt 0:00:00]} Nf6 {[%emt 0:00:00]} 3. d4 {[%emt 0:00:00]} Nxe4 {[%emt 0:00:00]} 4. Bd3 {[%emt 0:00:00]} d5 {[%emt 0:00:07]} 5. Nxe5 {[%emt 0:00:04]} Be7 {[%emt 0:05:19]} 6. O-O {[%emt 0:00:51]} O-O {[%emt 0:00:43]} 7. c4 {[%emt 0:00:15]} Nf6 {[%emt 0:03:25]} 8. Nc3 {[%emt 0:02:44]} Be6 {[%emt 0:02:32]} 9. cxd5 {[%emt 0:10:37]} Nxd5 {[%emt 0:00:06]} 10. Re1 {[%emt 0:08:35]} Nc6 {[%emt 0:06:26]} 11. Nxd5 {[%emt 0:14:24]} Bxd5 {[%emt 0:00:34]} 12. Qg4 {[%emt 0:02:54]} Re8 {[%emt 0:12:41]} 13. Bf4 {[%emt 0:23:42]} Bf6 {[%emt 0:05:10]} 14. Qh3 {[%emt 0:13:09]} g6 {[%emt 0:00:16]} 15. Bb5 {[%emt 0:00:27]} Bg7 {[%emt 0:01:01]} 16. Qg3 {[%emt 0:00:21]} a6 {[%emt 0:01:44]} 17. Bxc6 {[%emt 0:01:59]} Bxc6 {[%emt 0:00:54]} 18. Nxc6 {[%emt 0:00:20]} Rxe1+ {[%emt 0:00:45]} 19. Rxe1 {[%emt 0:00:05]} bxc6 {[%emt 0:00:03]} 20. Be5 {[%emt 0:01:13]} Bxe5 {[%emt 0:01:32]} 21. Qxe5 {[%emt 0:00:57]} Rb8 {[%emt 0:00:16]} 22. b3 {[%emt 0:01:25]} Rb5 {[%emt 0:00:25]} 23. Qe8+ {[%emt 0:02:11]} Qxe8 {[%emt 0:00:06]} 24. Rxe8+ {[%emt 0:00:03]} Kg7 {[%emt 0:00:04]} 25. Kf1 {[%emt 0:00:53]} Rd5 {[%emt 0:01:33]} 26. Ra8 {[%emt 0:02:51]} Rxd4 {[%emt 0:00:15]} 27. Rxa6 {[%emt 0:00:10]} Rd2 {[%emt 0:04:26]} 28. Rxc6 {[%emt 0:01:36]} Rxa2 {[%emt 0:00:40]} 29. Rxc7 {[%emt 0:00:04]} Rb2 {[%emt 0:00:07]} 30. Rb7 {[%emt 0:00:04]} g5 {[%emt 0:00:26]} 31. g4 {[%emt 0:04:28]} Kg6 {[%emt 0:03:56]} 32. Kg2 {[%emt 0:01:06]} h6 {[%emt 0:00:56]} 33. Rb8 {[%emt 0:00:18]} Kf6 {[%emt 0:00:16]} 34. Kg3 {[%emt 0:01:56]} Rb1 {[%emt 0:00:42]} 35. Rb5 {[%emt 0:01:48]} Kg6 {[%emt 0:00:53]} 36. Rb6+ {[%emt 0:00:09]} Kg7 {[%emt 0:00:12]} 37. h3 {[%emt 0:00:06]} Rg1+ {[%emt 0:00:21]} 38. Kh2 {[%emt 0:00:03]} Rb1 {[%emt 0:00:07]} 39. Kg2 {[%emt 0:00:02]} Kh7 {[%emt 0:00:52]} 40. b4 {[%emt 0:00:00]} Rb3 {[%emt 0:00:00]} 41. b5 {[%emt 0:03:42]} Kg7 {[%emt 0:01:33]} 42. Rb8 {[%emt 0:02:12]} Kf6 {[%emt 0:00:24]} 43. Rb7 {[%emt 0:06:29]} Kg6 {[%emt 0:00:46]} 44. b6 {[%emt 0:01:39]} Kf6 {[%emt 0:00:11]} 45. Rb8 {[%emt 0:00:24]} Ke7 {[%emt 0:00:49]} 46. f3 {[%emt 0:01:07]} Rb2+ {[%emt 0:01:06]} 47. Kf1 {[%emt 0:06:18]} Kf6 {[%emt 0:00:52]} 48. Rb7 {[%emt 0:00:03]} Kg6 {[%emt 0:02:04]} 49. Ke1 {[%emt 0:00:43]} Rb3 {[%emt 0:01:13]} 50. Ke2 {[%emt 0:00:14]} Kf6 {[%emt 0:03:06]} 51. Kd2 {[%emt 0:07:32]} Rxf3 {[%emt 0:01:16]} 52. Kc2 {[%emt 0:00:09]} Rf2+ {[%emt 0:01:00]} 53. Kc3 {[%emt 0:00:10]} Rf1 {[%emt 0:00:05]} 54. Rc7 {[%emt 0:00:38]} Rb1 {[%emt 0:00:25]} 55. b7 {[%emt 0:00:03]} Kg6 {[%emt 0:08:53]} 56. Kd4 {[%emt 0:00:53]} f6 {[%emt 0:00:06]} 57. Kc5 {[%emt 0:01:48]} h5 {[%emt 0:00:05]} 58. Rd7 {[%emt 0:00:32]} hxg4 {[%emt 0:02:23]} 59. hxg4 {[%emt 0:00:07]} 1-0